Workbook

Sheet Távhő Ökocímke Adatlap
S1: Értékelés
A2: Távhő Ökocímke Adatlap
A3: Távhő Ökocímke igénylés azonosító száma | B3: MTÖ-2022-00x | D3: Kérjük a szürke mezők kitöltését, az adott mezőhöz tartozó megjegyzés figyelembevételével. | G3: A világos kék mezőket csak akkor kell módosítania, ha van pontosabb adata. | T3: OK | U3: Kérjük a szakértő írjon egy OK-ot abba a mezőbe, amelyikhez tartozó adatot rendben találta.
A4: Távhőszolgáltató neve | B4: XY | T4: Megj | U4: Kérjük amennyben a szakértő módosítja a távhőszolgáltató által megadott értéket, úgy írja a megfelelő cellába a módosításhoz tartozó megjegyzést.
A5: Távhőrendszer megnevezése | B5: AB hidraulikailag egységes távhőrendszer
A6: Távhőenergia szolgáltatásba bevont lakások (január 1-jei) száma
B7: S
A8: Hőforrás megnevezése | C8: A Hőtermelő technológia | D8: B Hőtermelő technológia | E8: C Hőtermelő technológia | F8: D Hőtermelő technológia | G8: E Hőtermelő technológia | H8: F Hőtermelő technológia | I8: G Hőtermelő technológia | J8: H Hőtermelő technológia | K8: I Hőtermelő technológia | L8: J Hőtermelő technológia | M8: K Hőtermelő technológia | N8: L Hőtermelő technológia | O8: N Hőtermelő technológia | P8: M Hőtermelő technológia | T8: =C8 -> A Hőtermelő technológia | U8: =D8 -> B Hőtermelő technológia | V8: C Hőtermelő technológia | W8: D Hőtermelő technológia | X8: E Hőtermelő technológia | Y8: F Hőtermelő technológia | Z8: G Hőtermelő technológia | AA8: H Hőtermelő technológia | AB8: I Hőtermelő technológia | AC8: J Hőtermelő technológia | AD8: K Hőtermelő technológia | AE8: L Hőtermelő technológia | AF8: N Hőtermelő technológia | AG8: =P8 -> M Hőtermelő technológia
A9: Távhőtermelési technológia sorszáma (i) | C9: 10.Kapcsolt energiatermelés kombinált ciklusú erőművi blokkban | D9: - | E9: - | F9: - | G9: - | H9: - | I9: - | J9: - | K9: - | L9: - | M9: - | N9: - | O9: - | P9: - | T9: Megj: | U9: Megj: | V9: Megj: | W9: Megj: | X9: Megj: | Y9: Megj: | Z9: Megj: | AA9: Megj: | AB9: Megj: | AC9: Megj: | AD9: Megj: | AE9: Megj: | AF9: Megj: | AG9: Megj:
A10: Felhasznált primerenergia fajtája | C10: Földgáz | D10: - | E10: - | F10: - | G10: - | H10: - | I10: - | J10: - | K10: - | L10: - | M10: - | N10: - | O10: - | P10: - | T10: Megj: | U10: Megj: | V10: Megj: | W10: Megj: | X10: Megj: | Y10: Megj: | Z10: Megj: | AA10: Megj: | AB10: Megj: | AC10: Megj: | AD10: Megj: | AE10: Megj: | AF10: Megj: | AG10: Megj:
A11: Qi (GJ) | B11: =SUM(C11:P11) -> 40000 | C11: 40000 | T11: Megj: | U11: Megj: | V11: Megj: | W11: Megj: | X11: Megj: | Y11: Megj: | Z11: Megj: | AA11: Megj: | AB11: Megj: | AC11: Megj: | AD11: Megj: | AE11: Megj: | AF11: Megj: | AG11: Megj:
A12: ai | C12: =ROUND(C11/$B$11,4) -> 1 | D12: =ROUND(D11/$B$11,4) -> 0 | E12: 0 | F12: 0 | G12: 0 | H12: 0 | I12: 0 | J12: 0 | K12: 0 | L12: 0 | M12: 0 | N12: 0 | O12: 0 | P12: 0 | T12: - | U12: - | V12: - | W12: - | X12: - | Y12: - | Z12: - | AA12: - | AB12: - | AC12: - | AD12: - | AE12: - | AF12: - | AG12: -
A13: ei | C13: =VLOOKUP(C$9,'1.táblázat'!$A$1:$B$17,2,FALSE) -> 0.54 | D13: =VLOOKUP(D$9,'1.táblázat'!$A$1:$B$17,2,FALSE) -> 0 | E13: =VLOOKUP(E$9,'1.táblázat'!$A$1:$B$17,2,FALSE) -> 0 | F13: =VLOOKUP(F$9,'1.táblázat'!$A$1:$B$17,2,FALSE) -> 0 | G13: =VLOOKUP(G$9,'1.táblázat'!$A$1:$B$17,2,FALSE) -> 0 | H13: =VLOOKUP(H$9,'1.táblázat'!$A$1:$B$17,2,FALSE) -> 0 | I13: =VLOOKUP(I$9,'1.táblázat'!$A$1:$B$17,2,FALSE) -> 0 | J13: =VLOOKUP(J$9,'1.táblázat'!$A$1:$B$17,2,FALSE) -> 0 | K13: =VLOOKUP(K$9,'1.táblázat'!$A$1:$B$17,2,FALSE) -> 0 | L13: =VLOOKUP(L$9,'1.táblázat'!$A$1:$B$17,2,FALSE) -> 0 | M13: =VLOOKUP(M$9,'1.táblázat'!$A$1:$B$17,2,FALSE) -> 0 | N13: =VLOOKUP(N$9,'1.táblázat'!$A$1:$B$17,2,FALSE) -> 0 | O13: =VLOOKUP(O$9,'1.táblázat'!$A$1:$B$17,2,FALSE) -> 0 | P13: =VLOOKUP(P$9,'1.táblázat'!$A$1:$B$17,2,FALSE) -> 0 | T13: Megj: | U13: Megj: | V13: Megj: | W13: Megj: | X13: Megj: | Y13: Megj: | Z13: Megj: | AA13: Megj: | AB13: Megj: | AC13: Megj: | AD13: Megj: | AE13: Megj: | AF13: Megj: | AG13: Megj:
A14: n | B14: 0.15 | T14: Megj: | U14: Megj: | V14: Megj: | W14: Megj: | X14: Megj: | Y14: Megj: | Z14: Megj: | AA14: Megj: | AB14: Megj: | AC14: Megj: | AD14: Megj: | AE14: Megj: | AF14: Megj: | AG14: Megj:
A15: avil | B15: =IF(B11<100000,0.011,IF(B11>=500000,0.006,0.008)) -> 0.011 | T15: Megj: | U15: Megj: | V15: Megj: | W15: Megj: | X15: Megj: | Y15: Megj: | Z15: Megj: | AA15: Megj: | AB15: Megj: | AC15: Megj: | AD15: Megj: | AE15: Megj: | AF15: Megj: | AG15: Megj:
A16: evil | B16: 2.5 | T16: Megj: | U16: Megj: | V16: Megj: | W16: Megj: | X16: Megj: | Y16: Megj: | Z16: Megj: | AA16: Megj: | AB16: Megj: | AC16: Megj: | AD16: Megj: | AE16: Megj: | AF16: Megj: | AG16: Megj:
A17: gCO2,i (kg/GJ) | C17: =VLOOKUP(C10,'3.táblázat'!$A$2:$B$22,2,0) -> 56.1 | D17: =VLOOKUP(D10,'3.táblázat'!$A$2:$B$22,2,0) -> 0 | E17: =VLOOKUP(E10,'3.táblázat'!$A$2:$B$22,2,0) -> 0 | F17: =VLOOKUP(F10,'3.táblázat'!$A$2:$B$22,2,0) -> 0 | G17: =VLOOKUP(G10,'3.táblázat'!$A$2:$B$22,2,0) -> 0 | H17: =VLOOKUP(H10,'3.táblázat'!$A$2:$B$22,2,0) -> 0 | I17: =VLOOKUP(I10,'3.táblázat'!$A$2:$B$22,2,0) -> 0 | J17: =VLOOKUP(J10,'3.táblázat'!$A$2:$B$22,2,0) -> 0 | K17: =VLOOKUP(K10,'3.táblázat'!$A$2:$B$22,2,0) -> 0 | L17: =VLOOKUP(L10,'3.táblázat'!$A$2:$B$22,2,0) -> 0 | M17: =VLOOKUP(M10,'3.táblázat'!$A$2:$B$22,2,0) -> 0 | N17: =VLOOKUP(N10,'3.táblázat'!$A$2:$B$22,2,0) -> 0 | O17: =VLOOKUP(O10,'3.táblázat'!$A$2:$B$22,2,0) -> 0 | P17: =VLOOKUP(P10,'3.táblázat'!$A$2:$B$22,2,0) -> 0 | T17: - | U17: - | V17: - | W17: - | X17: - | Y17: - | Z17: - | AA17: - | AB17: - | AC17: - | AD17: - | AE17: - | AF17: - | AG17: -
A18: ai*ei*gCO2,i*(1-bres,i) | C18: =ROUND(C12*C13*C17*(1-C21),4) -> 30.294 | D18: =ROUND(D12*D13*D17*(1-D21),4) -> 0 | E18: =ROUND(E12*E13*E17*(1-E21),4) -> 0 | F18: 0 | G18: 0 | H18: 0 | I18: 0 | J18: 0 | K18: 0 | L18: 0 | M18: 0 | N18: 0 | O18: 0 | P18: 0 | T18: - | U18: - | V18: - | W18: - | X18: - | Y18: - | Z18: - | AA18: - | AB18: - | AC18: - | AD18: - | AE18: - | AF18: - | AG18: -
A19: gCO2,vil (kg/MWh) | B19: ='3.táblázat'!B23 -> 358.7 | T19: - | U19: - | V19: - | W19: - | X19: - | Y19: - | Z19: - | AA19: - | AB19: - | AC19: - | AD19: - | AE19: - | AF19: - | AG19: -
A20: T (GJ) | B20: =SUM(C20:P20) -> 21600 | C20: =C11*C13 -> 21600 | D20: =D11*D13 -> 0 | E20: =E11*E13 -> 0 | F20: 0 | G20: 0 | H20: 0 | I20: 0 | J20: 0 | K20: 0 | L20: 0 | M20: 0 | N20: 0 | O20: 0 | P20: 0 | T20: - | U20: - | V20: - | W20: - | X20: - | Y20: - | Z20: - | AA20: - | AB20: - | AC20: - | AD20: - | AE20: - | AF20: - | AG20: -
A21: bi,res | C21: =VLOOKUP(C10,'3.táblázat'!$A$1:$C$21,3,FALSE) -> 0 | D21: =VLOOKUP(D10,'3.táblázat'!$A$1:$C$21,3,FALSE) -> 0 | E21: =VLOOKUP(E10,'3.táblázat'!$A$1:$C$21,3,FALSE) -> 0 | F21: =VLOOKUP(F10,'3.táblázat'!$A$1:$C$21,3,FALSE) -> 0 | G21: =VLOOKUP(G10,'3.táblázat'!$A$1:$C$21,3,FALSE) -> 0 | H21: =VLOOKUP(H10,'3.táblázat'!$A$1:$C$21,3,FALSE) -> 0 | I21: =VLOOKUP(I10,'3.táblázat'!$A$1:$C$21,3,FALSE) -> 0 | J21: =VLOOKUP(J10,'3.táblázat'!$A$1:$C$21,3,FALSE) -> 0 | K21: =VLOOKUP(K10,'3.táblázat'!$A$1:$C$21,3,FALSE) -> 0 | L21: =VLOOKUP(L10,'3.táblázat'!$A$1:$C$21,3,FALSE) -> 0 | M21: =VLOOKUP(M10,'3.táblázat'!$A$1:$C$21,3,FALSE) -> 0 | N21: =VLOOKUP(N10,'3.táblázat'!$A$1:$C$21,3,FALSE) -> 0 | O21: =VLOOKUP(O10,'3.táblázat'!$A$1:$C$21,3,FALSE) -> 0 | P21: =VLOOKUP(P10,'3.táblázat'!$A$1:$C$21,3,FALSE) -> 0 | T21: - | U21: - | V21: - | W21: - | X21: - | Y21: - | Z21: - | AA21: - | AB21: - | AC21: - | AD21: - | AE21: - | AF21: - | AG21: -
A22: Tres (GJ) | B22: =SUM(C22:P22) -> 0 | C22: =C20*C21 -> 0 | D22: =D20*D21 -> 0 | E22: =E20*E21 -> 0 | F22: 0 | G22: 0 | H22: 0 | I22: 0 | J22: 0 | K22: 0 | L22: 0 | M22: 0 | N22: 0 | O22: 0 | P22: 0 | T22: - | U22: - | V22: - | W22: - | X22: - | Y22: - | Z22: - | AA22: - | AB22: - | AC22: - | AD22: - | AE22: - | AF22: - | AG22: -
A23: bvil,res | B23: ='3.táblázat'!C23 -> 0.1 | T23: Megj: | U23: Megj: | V23: Megj: | W23: Megj: | X23: Megj: | Y23: Megj: | Z23: Megj: | AA23: Megj: | AB23: Megj: | AC23: Megj: | AD23: Megj: | AE23: Megj: | AF23: Megj: | AG23: Megj:
A24: Tvil (GJ) | B24: =B11*B15*B16 -> 1100 | T24: - | U24: - | V24: - | W24: - | X24: - | Y24: - | Z24: - | AA24: - | AB24: - | AC24: - | AD24: - | AE24: - | AF24: - | AG24: -
A25: Tvil,res (GJ) | B25: =B24*B23 -> 110 | T25: - | U25: - | V25: - | W25: - | X25: - | Y25: - | Z25: - | AA25: - | AB25: - | AC25: - | AD25: - | AE25: - | AF25: - | AG25: -
A26: SPF (csak hőszivattyús termelés esetén) | B26: 1 | T26: - | U26: - | V26: - | W26: - | X26: - | Y26: - | Z26: - | AA26: - | AB26: - | AC26: - | AD26: - | AE26: - | AF26: - | AG26: -
A28: A távhőrendszer primerenergia hatékonysági tényezőjének (e) kiszámítása | T28: A ________________Kft. _______________távhőrendszerrel ( _______________ GJ primerenergiafelhasználással) pályázott a Távhő Ökocímkére. A pályázat megfelel a mind a formai mind a tartalmi követelményeknek, a megadott adatokat rendben találtam / a fenn jelölt cellákban talált értékeket módosítottam
T30: Az Értékelő bizottság számára elfogadásra javaslom, az alábbi feltételekkel _________________.
AD32: Szakértő
C33: A távhőrendszer primerenergia hatékonysági tényezőjének értéke (GJ/GJ) | Y33: =C33 -> A távhőrendszer primerenergia hatékonysági tényezőjének értéke (GJ/GJ)
C34: =1/(1-B14)*(B16*B15+SUMPRODUCT(C12:P12,C13:P13)) -> 0.6676470588 | Y34: =C34 -> 0.6676470588 | Z34: OK
C36: A távhőrendszer primerenergia hatékonysági osztálya | Y36: A távhőrendszer primerenergia hatékonysági osztálya
C37: =IF(C34<'Besorolási osztályok'!D2,'Besorolási osztályok'!A2,IF(AND('Besorolási osztályok'!B3<=C34,C34<'Besorolási osztályok'!D3),'Besorolási osztályok'!A3,IF(AND('Besorolási osztályok'!B4<=C34,C34<'Besorolási osztályok'!D4),'Besorolási osztályok'!A4,IF(AND('Besorolási osztályok'!B5<=C34,C34<'Besorolási osztályok'!D5),'Besorolási osztályok'!A5,IF(AND('Besorolási osztályok'!B6<=C34,C34<'Besorolási osztályok'!D6),'Besorolási osztályok'!A6,IF(AND('Besorolási osztályok'!B7<=C34,C34<'Besorolási osztályok'!D7),'Besorolási osztályok'!A7,'Besorolási osztályok'!A8)))))) -> A+ | Y37: =C37 -> A+ | Z37: OK
A39: A megújuló energiaforrásokkal termelt távhő (βres) részarányának kiszámítása
C46: A távhőrendszerben megújuló energiaforrásokkal termelt távhő részaránya | Y46: =C46 -> A távhőrendszerben megújuló energiaforrásokkal termelt távhő részaránya
C47: =(SUMPRODUCT(C12:P12,C21:P21)+B15*B23)/(1+B15) -> 0.001088031652 | Y47: =C47 -> 0.001088031652 | Z47: OK
C49: A távhőrendszer megújuló energiaforrásokkal termelt távhő részaránya szerinti osztályba sorolása | Y49: A távhőrendszer megújuló energiaforrásokkal termelt távhő részaránya szerinti osztályba sorolása
C50: =IF(C47>'Besorolási osztályok'!G2,'Besorolási osztályok'!A2,IF(AND('Besorolási osztályok'!E3>='Besorolási osztályok'!A47,C47>'Besorolási osztályok'!G3),'Besorolási osztályok'!A3,IF(AND('Besorolási osztályok'!E4>=C47,C47>'Besorolási osztályok'!G4),'Besorolási osztályok'!A4,IF(AND('Besorolási osztályok'!E5>=C47,C47>'Besorolási osztályok'!G5),'Besorolási osztályok'!A5,IF(AND('Besorolási osztályok'!E6>=C47,C47>'Besorolási osztályok'!G6),'Besorolási osztályok'!A6,IF(AND('Besorolási osztályok'!E7>=C47,C47>'Besorolási osztályok'!G7),'Besorolási osztályok'!A7,'Besorolási osztályok'!A8)))))) -> F | Y50: F | Z50: OK
A52: A távhőrendszer fajlagos CO2-kibocsátásának (gco2) kiszámítása
C57: A távhőrendszer fajlagos CO2-kibocsátása (kg/GJ) | Y57: =C57 -> A távhőrendszer fajlagos CO2-kibocsátása (kg/GJ)
C58: =1/(1-B14)*(B15*B19/3.6+SUM(C18:P18)) -> 36.92944444 | Y58: =C58 -> 36.92944444 | Z58: OK
C60: A távhőrendszer fajlagos CO2-kibocsátás szerinti osztályba sorolása | Y60: A távhőrendszer fajlagos CO2-kibocsátás szerinti osztályba sorolása
C61: =IF(C58<'Besorolási osztályok'!J2,'Besorolási osztályok'!A2,IF(AND('Besorolási osztályok'!H3<=C58,C58<'Besorolási osztályok'!J3),'Besorolási osztályok'!A3,IF(AND('Besorolási osztályok'!H4<=C58,C58<'Besorolási osztályok'!J4),'Besorolási osztályok'!A4,IF(AND('Besorolási osztályok'!H5<=C58,C58<'Besorolási osztályok'!J5),'Besorolási osztályok'!A5,IF(AND('Besorolási osztályok'!H6<=C58,C58<'Besorolási osztályok'!J6),'Besorolási osztályok'!A6,IF(AND('Besorolási osztályok'!H7<=C58,C58<'Besorolási osztályok'!J7),'Besorolási osztályok'!A7,'Besorolási osztályok'!A8)))))) -> A+ | Y61: A+ | Z61: OK

Sheet 1.táblázat
A1: Távhőtermelő technológia | B1: Távhőtermelő technológia primerenergia-átalakítási tényezője (ei)
A2: - | B2: 0
A3: 1.Kizárólagos (nem kapcsolt) hőtermelés (fűtőmű/kazánház) - szénhidrogének (földgáz, tüzelőolaj, fűtőolaj) | B3: 1.12
A4: 2.Kizárólagos (nem kapcsolt) hőtermelés (fűtőmű/kazánház) - biogáz | B4: 1.12
A5: 3.Kizárólagos (nem kapcsolt) hőtermelés (villamos kazán) - villamos energia | B5: 2.55
A6: 4.Kizárólagos (nem kapcsolt) hőtermelés (fűtőmű/kazánház) - szénféleségek | B6: 1.25
A7: 5.Kizárólagos (nem kapcsolt) hőtermelés (fűtőmű/kazánház) - tüzifa, faapríték, fahulladék, biobrikett, egyéb bio tüzelőanyagok | B7: 1.16
A8: 6.Kizárólagos (nem kapcsolt) hőtermelés (fűtőmű/kazánház) - kommunális hulladék | B8: 1.22
A9: 7.Kizárólagos (nem kapcsolt) hőtermelés (fűtőmű/kazánház) - hulladékhő | B9: 0
A10: 8.Kizárólagos (nem kapcsolt) hőtermelés (fűtőmű/kazánház) - szoláris- és geotermikus energia | B10: 1
A11: 9.Nukleáris energia | B11: 1
A12: 10.Kapcsolt energiatermelés kombinált ciklusú erőművi blokkban | B12: 0.54
A13: 11.Kapcsolt energiatermelés hagyományos gőz-körfolyamatú erőművi blokkban | B13: 0.87
A14: 12.Kapcsolt energiatermelés 1.200 kWe villamos egységteljesítményt meghaladó gázmotorral | B14: 0.55
A15: 13.Kapcsolt energiatermelés 1.200 kWe villamos egységteljesítményt nem meghaladó gázmotorral | B15: 0.72
A16: 14.Kapcsolt energiatermelés hőhasznosító kazánnal ellátott gázturbinás erőműben | B16: 0.82
A17: 15.Kapcsolt energiatermelés hőszivattyúval | B17: 0.7142857143

Sheet 2.táblázat
A1: A hőtermeléshez és primer oldali keringtetéshez felhasznált villamos energia aránya a kiadott hőmennyiségre vetítve (avil) a hőtermelő által kiadott hőmennyiség (Q /GJ/év/) függvényében
A2: Q (GJ/év) | B2: avill (GJ/GJ)
A3: Q<100.000 | B3: 0.011
A4: 100.000<=Q<500.000 | B4: 0.008
A5: 500.000=<Q | B5: 0.006

Sheet 3.táblázat
A1: Primer energiaforrások és a villamosenergia-rendszer fajlagos CO2 kibocsátási tényezői | C1: Megújuló részarány
A2: Primer energiaforrás | B2: gCO2 (kg/GJ) | C2: bres
A3: - | B3: 0 | C3: 0
A4: Szén | B4: 94.6 | C4: 0
A5: Lignit | B5: 113.2 | C5: 0
A6: Tűzifa és fahulladék, biobrikett, egyéb bio tüzelőanyagok | B6: 109.6 | C6: 1
A7: Szoláris-, geotermikus-, szél- és vízenergia | B7: 0 | C7: 1
A8: Nukleárisenergia | B8: 0 | C8: 0
A9: Hulladék hő (ipari, saját, füstgáz, stb) | B9: 0 | C9: 0
A10: Hulladék hő (megújuló alapú termelésből) | B10: 0 | C10: 1
A11: Kommunális hulladék | B11: 90.5 | C11: 0.5
A12: Tüzelőolajok | B12: 74.1 | C12: 0
A13: Fűtőolajok | B13: 77.4 | C13: 0
A14: Földgáz | B14: 56.1 | C14: 0
A15: PB/SNG-gáz | B15: 63.1 | C15: 0
A16: Kamragáz | B16: 47.7 | C16: 0
A17: Kohógáz | B17: 242 | C17: 0
A18: Biogáz | B18: 54.9 | C18: 1
A19: Saját termelésű villamos energia | B19: =B23/3.6 -> 99.63888889 | C19: 0.1 | D19: Kérjük itt adja meg a másik lapfülön kiszámolt saját rendszerére jellemző adatokat.
A20: Hálózatról vételezett villamos energia | B20: =B23/3.6 -> 99.63888889 | C20: 0.1
A21: Hőszivattyú esetén | C21: 1-1/SPF*
B22: gCO2 (kg/MWh)
A23: Villamosenergia-rendszer (Pakssal)* | B23: 358.7 | C23: 0.1
A25: * Források: Magyar Energetika 2017/1. A MAGYAR VILLAMOSENERGIA-RENDSZER (VER) 2015. ÉVI ADATAI, MEKH, MAVIR

Sheet e VKk
A1: Kapcsoltan termelt villamos energiával fűtött kazán primerenergia-átalakítási tényezője
A2: e VKk | B2: =IFERROR(1/(B4*B5),0) -> 1
A4: href | B4: 1
A5: hVK | B5: 1

Sheet Kapcsolt ei meghatározás
A1: Kapcsoltan termelt hő fajlagos primerenergia-felhasználásának számítással történő meghatározása
A2: ei | B2: =IFERROR(((1+B4)/B6)-(B4/B5),0) -> 0
A4: si | B4: =IFERROR(B8/B9,0) -> 0
A5: href,i | B5: 1
A6: hen,i | B6: =IFERROR((B8+B9)/B7,0) -> 0
A7: Gi | B7: 0
A8: Ei | B8: 0
A9: Qi | B9: 0

Sheet Saját e vill
A1: Saját termelésű villamos energia felhasználásának figyelembevétele
A2: e vill | B2: =IFERROR((((1-B6)*B5)+(B6*(1/B4))),0) -> 2.5
A4: href | B4: 1
A5: ever | B5: 2.5
A6: p | B6: 0

Sheet Besorolási osztályok
A1: Osztály | B1: e | E1: bRes | H1: gCO2
A2: A+ | C2: e< | D2: 0.94 | F2: bRes> | G2: 0.42 | I2: gCO2< | J2: 40.4
A3: A | B3: 0.94 | C3: ≤e< | D3: 1.03 | E3: 0.42 | F3: ³bRes> | G3: 0.273 | H3: 40.4 | I3: ≤gCO2< | J3: 47.1
A4: B | B4: 1.03 | C4: ≤e< | D4: 1.11 | E4: 0.273 | F4: ³bRes> | G4: 0.21 | H4: 47.1 | I4: ≤gCO2< | J4: 53.9
A5: C | B5: 1.11 | C5: ≤e< | D5: 1.2 | E5: 0.21 | F5: ³bRes> | G5: 0.168 | H5: 53.9 | I5: ≤gCO2< | J5: 67.3
A6: D | B6: 1.2 | C6: ≤e< | D6: 1.29 | E6: 0.168 | F6: ³bRes> | G6: 0.126 | H6: 67.3 | I6: ≤gCO2< | J6: 77.4
A7: E | B7: 1.29 | C7: ≤e< | D7: 1.37 | E7: 0.126 | F7: ³bRes> | G7: 0.063 | H7: 77.4 | I7: ≤gCO2< | J7: 87.5
A8: F | B8: 1.37 | C8: ≤e | E8: 0.063 | F8: ³bRes | H8: 87.5 | I8: ≤gCO2
